Cogmind - Beta 17 @@@ ROGUE MODE // 2026.07.09 @ 22:37:21 // AFD2020/Player2 Player: chai Result: Core destroyed Performance ------------- Evolutions (0) 0 Regions Visited (2) 400 Robots Destroyed (10) 50 Value Destroyed (221) 221 Prototype IDs (2) 40 Alien Tech Used (0) 0 Bonus (81) 81 TOTAL SCORE: 792 Bonus ------- Follower Combat Kills 102 Friendly Fire -21 Cogmind --------- Core Integrity 0/250 Matter 300/300 Energy 155/160 System Corruption 2% Temperature Cool (0) Movement Rolling (115) Ox1 Location -10/Mines Parts ------- > --- POWER (1) -------- Light Nuclear Core > --- PROPULSION (2) --- Light Treads Compact Wheel > --- UTILITY (2) ------ Improved Heat Sink Medium Storage Unit > --- WEAPON (2) ------- Medium Laser Small Laser > --- INVENTORY (10) --- Ion Engine Compact Wheel Large Matter Pod (92) Signal Interpreter Signal Interpreter Signal Interpreter EM Pulse Gun Light Assault Rifle Mining Laser Peak State ------------ > --- POWER ------------ Light Nuclear Core > --- PROPULSION ------- Light Treads Compact Wheel > --- UTILITY ---------- Improved Heat Sink Medium Storage Unit > --- WEAPON ----------- Small Laser Light Assault Rifle > --- INVENTORY -------- Large Matter Pod [Rating: 11] Favorites ----------- Power Light Nuclear Core Engine Ion Engine Power Core Light Nuclear Core Propulsion Light Treads Treads Light Treads Wheel Compact Wheel Utility Medium Storage Unit Device Improved Heat Sink Storage Medium Storage Unit Processor Visual Processing Unit Weapon Small Laser Energy Gun Small Laser Ballistic Gun Light Assault Rifle Build | -11 -10 -10 ------- Run | Yrd Mat Min Slots Evolved . | . . . Power . | . . . Propulsion . | . . . Utility . | . . . Weapon . | . . . Parts Attached 11 | 6 5 . Power 2 | 1 1 . Engine 1 | 1 . . Core 1 | . 1 . Reactor . | . . . Propulsion 2 | 2 . . Treads 1 | 1 . . Leg . | . . . Wheel 1 | 1 . . Hover . | . . . Flight . | . . . Utility 4 | 1 3 . Device 1 | . 1 . Storage 2 | 1 1 . Processor 1 | . 1 . Hackware . | . . . Protection . | . . . Artifact . | . . . Weapon 3 | 2 1 . Energy Gun 2 | 1 1 . Energy Cannon . | . . . Ballistic Gun 1 | 1 . . Ballistic Cannon . | . . . Launcher . | . . . Special Weapon . | . . . Impact Weapon . | . . . Slashing Weapon . | . . . Piercing Weapon . | . . . Special Melee Weapon . | . . . Unidentified Prototypes . | . . . Parts Lost 1 | . 1 . Power 1 | . 1 . Propulsion . | . . . Utility . | . . . Weapon . | . . . Highest Loss Streak 1 | . 1 . To Critical Strikes . | . . . Average Backups 5 | 2 4 9 Power . | . . 1 Propulsion . | 1 . 1 Utility 2 | . 2 4 Weapon 1 | . 1 3 Tool/Special . | . . . Unused Backups 12 | . 5 7 Power 2 | . 1 1 Propulsion 3 | . 2 1 Utility 5 | . 1 4 Weapon 2 | . 1 1 Tool/Special . | . . . Average Slot Usage (%) 96 | . 95 100 Engine 1 | . 2 . Core 11 | . 9 14 Treads 14 | . 14 14 Wheel 14 | . 14 14 Device 11 | . 9 14 Storage 14 | . 14 14 Processor 1 | . 1 . Energy Gun 24 | . 23 28 Ballistic Gun 3 | . 4 . Peak Build Rating 11 | 6 11 11 Average Rating 9 | 4 9 11 On Entrance 5 | . 6 11 Avg Prop Armor Cover (%) 14 | 17 14 14 Naked Turns . | . . . Heaviest Build 22 | 12 22 19 Greatest Support 20 | 20 16 16 Greatest Overweight (x) 1 | . 1 1 Average Overweight (x) . | . . 1 Largest Inventory Capacity 10 | 8 10 10 Average Capacity 9 | 7 9 10 Most Carried 9 | 4 9 9 Average Carried 5 | 2 4 9 Final Capacity 10 | 8 10 10 Final Carried 9 | 4 9 9 Class Distribution -------------------- 100% | Mutant Dominant Class ---------------- Mutant | -10/Materials Mutant | -10/Mines Resources | -11 -10 -10 ----------- Run | Yrd Mat Min Matter Collected 443 | 179 236 28 Remotely . | . . . Salvage Created 293 | . 268 25 Parts 20 | . 18 2 Haulers Intercepted . | . . . Recyclers Shooed . | . . . Parts Field Recycled . | . . . Retrieved Matter . | . . . Parts Self-Destructed . | . . . Prevented . | . . . Parts Restored . | . . . Kills | -11 -10 -10 ------- Run | Yrd Mat Min Combat Hostiles Destroyed 7 | . 5 2 Guns 7 | . 5 2 Classes Destroyed 4 | . 3 1 Worker 2 | . 2 . Watcher 1 | . 1 . Swarmer 2 | . . 2 Grunt 5 | . 5 . Best Kill Streak 3 | . 3 2 Combat Bots Only 3 | . 3 2 Max Kills in Single Turn 2 | . 2 1 Gunslinging . | . . . Exploded . | . . . Melee . | . . . Uniques/NPCs Destroyed . | . . . Combat | -11 -10 -10 -------- Run | Yrd Mat Min Hostile Shots Fired 4 | . 3 1 Missed 2 | . 2 . Hits 2 | . 1 1 Projectile 2 | . 1 1 AOE 6 | . . 6 Damage Taken 338 | . 193 145 Core 70 | . 31 39 Absorbed by Shields . | . . . Core Remaining (%) 100 | 100 . . Volleys Fired 28 | . 24 4 Largest 2 | . 2 2 Hottest 90 | . 90 90 Shots Fired 55 | . 47 8 Gun 55 | . 47 8 Cannon . | . . . Launcher . | . . . Special . | . . . Kinetic 19 | . 19 . Thermal 36 | . 28 8 Explosive . | . . . Electromagnetic . | . . . Robot Hit Streak 8 | . 8 6 Robot Miss Streak 3 | . 3 1 Penetration Max . | . . . Secondary Targets . | . . . Shots Hit Robots 39 | . 33 6 Core Hits 21 | . 17 4 Critical Kills . | . . . Critical Parts Destroyed . | . . . Critical Strikes 2 | . 1 1 Burn 2 | . 1 1 Melee Attacks . | . . . Impact . | . . . Slashing . | . . . Piercing . | . . . Sneak Attacks . | . . . Combat Hostiles . | . . . Follow-up Attacks . | . . . Damage Inflicted 434 | . 367 67 Guns 434 | . 367 67 Cannons . | . . . Explosions . | . . . Melee . | . . . Ramming . | . . . Kinetic 113 | . 113 . Thermal 321 | . 254 67 Explosive . | . . . Electromagnetic . | . . . Impact . | . . . Slashing . | . . . Piercing . | . . . Highest Corruption 2 | . 2 2 Average Corruption 1 | . 1 2 Corruption Purged . | . . . Corruption Blocked . | . . . Effects 10 | . 8 2 Message Errors 4 | . 3 1 Matter Fused 3 | . 3 . Energy Discharges 1 | . . 1 Data Loss (major) 1 | . 1 . Alerts 1 | . 1 . Overload Shots . | . . . Overflow Damage . | . . . Projectiles . | . . . Explosions . | . . . Melee . | . . . Knockbacks . | . . . Impact . | . . . Kinetic . | . . . Secondary . | . . . Self-Inflicted Damage . | . . . Shots . | . . . Rammed . | . . . Targets Rammed . | . . . Kicked . | . . . Crushed . | . . . Highest Temperature 29 | . 29 . Average Temperature 11 | . 11 . Received Heat Transfer 15 | . 15 . Siege Activations . | . . . Martial Activations . | . . . Shielding Activations . | . . . Robots Disrupted . | . . . Combat Hostiles . | . . . Robots Corrupted . | . . . Combat Hostiles . | . . . Parts Fried . | . . . Impact Corruptions . | . . . Robots Melted . | . . . Combat Hostiles . | . . . Parts Melted . | . . . Heat Transferred 957 | . 697 260 Parts Sabotaged . | . . . Parts Stolen . | . . . Parts Stripped . | . . . Power Chain Reactions . | . . . Alert | -11 -10 -10 ------- Run | Yrd Mat Min Maximum Alert Level . | . . . Low Security (%) 100 | 100 100 100 Level 1 . | . . . Level 2 . | . . . Level 3 . | . . . Level 4 . | . . . Level 5 . | . . . High Security . | . . . Max Security . | . . . Peak Influence 154 | . 154 101 Initial 14 | . . 14 Average 53 | . 59 50 Influence Increases 396 | . 309 87 Destroy 0b10 Robot/C 220 | . 160 60 Destroy 0b10 Robot/NC 20 | . 20 . Destroy Leader 64 | . 54 10 Allied During Kill 71 | . 54 17 Successful Hack 21 | . 21 . Influence Decreases 395 | . 272 123 Entered New Map 23 | . . 23 Time Decay 334 | . 234 100 Lost Part 38 | . 38 . Squads Dispatched 2 | . 2 . Investigation . | . . . Extermination . | . . . Reinforcement 2 | . 2 . Assault . | . . . Garrison . | . . . Intercept . | . . . Searches Triggered . | . . . Construction Impeded . | . . . Haulers Reinforced . | . . . Active Scanning Responses . | . . . Cargo Convoy Interrupts . | . . . Stealth | -11 -10 -10 --------- Run | Yrd Mat Min Distress Signals . | . . . Communications Jammed . | . . . Distress Signals . | . . . Times Spotted 17 | . 14 3 Peak Tracking Total 5 | . 5 1 Tactical Retreats . | . . . Traps | -11 -10 -10 ------- Run | Yrd Mat Min Traps Triggered 3 | . 3 . Indirectly . | . . . Trap Hack Attempts . | . . . Triggered . | . . . Disarmed . | . . . Reprogrammed . | . . . Reused . | . . . Traps Extracted . | . . . Installed . | . . . Triggered . | . . . Machines | -11 -10 -10 ---------- Run | Yrd Mat Min Machines Disabled . | . . . Max in Single Turn . | . . . Machines Repaired . | . . . Machines Dismantled . | . . . Machines Sabotaged . | . . . Overloaded Fab Kills . | . . . Hacking | -11 -10 -10 --------- Run | Yrd Mat Min Machines Accessed 5 | . 5 . Terminals 4 | . 4 . Fabricators . | . . . Repair Stations . | . . . Recycling Units 1 | . 1 . Scanalyzers . | . . . Garrison Access . | . . . Total Hacks 11 | . 11 . Successful 9 | . 9 . Failed 2 | . 2 . Catastrophic . | . . . Database Lockouts . | . . . Manual . | . . . Terminals 9 | . 9 . Fabricators . | . . . Repair Stations . | . . . Recycling Units 2 | . 2 . Scanalyzers . | . . . Garrison Access . | . . . Terminal Hacks 7 | . 7 . Prototype ID Bank 1 | . 1 . Branch Access Points 1 | . 1 . Emergency Access Points 1 | . 1 . Alert Level 3 | . 3 . Hauler Manifests 1 | . 1 . Fabricator Hacks . | . . . Repair Station Hacks . | . . . Recycling Unit Hacks 2 | . 2 . Report Inventory 1 | . 1 . Retrieve Components 1 | . 1 . Scanalyzer . | . . . Garrison Access Hacks . | . . . Unauthorized Hacks . | . . . Terminals . | . . . Fabricators . | . . . Repair Stations . | . . . Recycling Units . | . . . Scanalyzers . | . . . Garrison Access . | . . . Data Cores Recovered . | . . . Used . | . . . Hacking Detections 3 | . 3 . Full Trace Events . | . . . Feedback Events . | . . . Feedback Blocked . | . . . Robot Schematics Acquired . | . . . Robots Built . | . . . Authchips . | . . . Time . | . . . Total Robot Build Rating . | . . . Part Schematics Acquired . | . . . Parts Built . | . . . Authchips . | . . . Time . | . . . Total Part Build Rating . | . . . Part Studies Acquired . | . . . Parts Repaired . | . . . Time . | . . . Parts Recycled . | . . . Recycled Matter . | . . . Retrieved Matter . | . . . Retrieved Components 8 | . 8 . Parts Scanalyzed . | . . . Part Schematics Acquired . | . . . Parts Damaged . | . . . Bothacking | -11 -10 -10 ------------ Run | Yrd Mat Min Used RIF Installer . | . . . Robots Hacked . | . . . Non-combat . | . . . Combat . | . . . Robot Hacks Applied . | . . . Relay Couplers Released . | . . . Fabnet Peak Effective % . | . . . Robots Rewired . | . . . Allies Hacked . | . . . Hacks Repelled . | . . . Allies | -11 -10 -10 -------- Run | Yrd Mat Min Total Allies 1 | . 1 . Largest Group 1 | . 1 1 Highest-Rated Group 61 | . 61 61 Highest-Rated Ally 61 | . 61 61 Total Orders . | . . . Ally Attacks 30 | . 25 5 Total Damage 325 | . 265 60 Kills 5 | . 4 1 Allies Corrupted . | . . . Allies Melted . | . . . Intel | -11 -10 -10 ------- Run | Yrd Mat Min Active Infowar (turns) 92 | . 92 . Optics 92 | . 92 . Robot Analysis Total . | . . . Derelict Logs Recovered 1 | . . 1 Drone Launches . | . . . Drone Recoveries . | . . . Exploration | -11 -10 -10 ------------- Run | Yrd Mat Min Turns Passed 940 | 69 653 218 Spaces Moved 675 | 55 445 175 Core 2 | 2 . . Treads 4 | 4 . . Legs . | . . . Wheels 669 | 49 445 175 Hover . | . . . Flight . | . . . Fastest Speed 50 | 50 100 115 Average Speed 112 | 102 112 115 Slowest Speed 160 | 160 115 115 Overloaded Moves . | . . . Propulsion Burnouts . | . . . Robots Hopped . | . . . Potential Cave-ins . | . . . Cave-ins Triggered . | . . . Exploration Rate (%) 46 | 4 81 53 Regions Visited 2 Branch Regions 1 Pre-discovered Areas . | . . . Known Exits Taken 1 | . 1 . Unknown Exits Taken 1 | 1 . . Scrap Searched . | . . . Spaces Dug . | . . . Terrain Destroyed . | . . . Melee . | . . . Projectile . | . . . AOE . | . . . Terrain Rammed . | . . . Walls Destroyed . | . . . Machines Disabled . | . . . Actions | -11 -10 -10 --------- Run | Yrd Mat Min Total 805 | 64 556 185 Wait 72 | . 66 6 Move 673 | 54 444 175 Hop . | . . . Pick Up 15 | 4 11 . Fast Attach 9 | 6 3 . Attach . | . . . Detach . | . . . Swap 2 | . 2 . Drop 6 | . 6 . Fire 28 | . 24 4 Melee . | . . . Ram . | . . . Kick . | . . . Crush . | . . . Escape Stasis . | . . . Rewire . | . . . Trap . | . . . Miscellaneous . | . . . Route ------- -11/Scrapyard -10/Materials (discovered 4 exits: [*Mat x2] / *Min x2) -10/Mines (discovered 2 exits: [*Mat] / [*Exi]) History --------- Turn | Location | Event 34 | -11/Scrapyard | Discovered new exit (range 15) 70 | -11/Scrapyard | Entered Materials 308 | -10/Materials | Build established: Mutant 384 | -10/Materials | Discovered new exit (range 9) 494 | -10/Materials | Discovered new exit (range 15) 504 | -10/Materials | Identified exit to Mines 634 | -10/Materials | Discovered new exit (range 12) 723 | -10/Materials | Entered Mines 850 | -10/Mines | Discovered new exit (range 9) 892 | -10/Mines | Deemed a non-threat by the Exiles lab entrance 892 | -10/Mines | Discovered new exit (range 5) 938 | -10/Mines | Core integrity fell below 50% 941 | -10/Mines | Core destroyed Last Messages --------------- 00730_ Player 2 drops Lgt. Assault Rifle. 00730_ Player 2 attaches Lgt. Assault Rifle. Player 2: "Did you remember to bring a Mining Laser? Who knows, we might strike gold down here!" 00731_ Acquired 15 matter. 00731_ T-07 Excavator is excavating. 00733_ Acquired 13 matter. 00736_ T-07 Excavator is excavating. 00758_ |WMQIK9HHUDNFQ ZRPIL 00775_ Acquired derelict log, extracted data. Data stored: Storage entrances (x1). 00813_ System corrupted: Energy discharge (-51). 00824_ K-01 Serf cleans the Pulverizer. 00850_ EXIT=FOUND 00892_ "No threat detected, you may enter." 00892_ EXIT=FOUND 00938_ K-01 Serf collects debris. 00940_ The unstable cave ceiling collapses. 00940_ YI-UF0 suffers critical hit (Burn). Map ----- +----------------------------------------------------+ | | | | | | | ?????????????????????????????????????????????????? | | ?????????????????????????????????????????????????? | | ?????????????????????????????????????????????????? | | ?????????????????????????????????????????????????? | | ?????????????????????????????????????????????????? | | ?????????????????????????????????????????????????? | | ??????????????????????????????????####???????????? | | ???????????????????????? ??????#